[Event "Late-Titled-Tuesday-Blitz-August-29-2023"]
[Site "Chess.com"]
[Date "2023.08.29"]
[Round "7"]
[White "Djager97"]
[Black "FeketeBarika"]
[Result "1-0"]
[WhiteElo "2576"]
[BlackElo "2351"]
[TimeControl "180+1"]
[EndTime "15:13:49 PDT"]
[Termination "Djager97 won by checkmate"]

1. e4 {[%clk 0:03:00.9]} 1... e6 {[%clk 0:02:43]} 2. d4 {[%clk 0:03:00.5]} 2...
d5 {[%clk 0:02:42.4]} 3. Nc3 {[%clk 0:03:01.4]} 3... Nf6 {[%clk 0:02:40.5]} 4.
e5 {[%clk 0:03:01.8]} 4... Nfd7 {[%clk 0:02:40.7]} 5. Nce2 {[%clk 0:03:02.4]}
5... c5 {[%clk 0:02:40.5]} 6. c3 {[%clk 0:03:03]} 6... Nc6 {[%clk 0:02:41]} 7.
Nf3 {[%clk 0:03:03.6]} 7... Be7 {[%clk 0:02:36.7]} 8. a3 {[%clk 0:03:01.9]} 8...
cxd4 {[%clk 0:02:34.9]} 9. cxd4 {[%clk 0:03:01.7]} 9... a5 {[%clk 0:02:35.4]}
10. Nf4 {[%clk 0:03:00]} 10... O-O {[%clk 0:02:34.7]} 11. Bd3 {[%clk 0:02:59.5]}
11... g6 {[%clk 0:02:18.1]} 12. h4 {[%clk 0:02:55.4]} 12... Re8 {[%clk
0:02:18.4]} 13. h5 {[%clk 0:02:55]} 13... Nf8 {[%clk 0:02:18.3]} 14. Qc2 {[%clk
0:02:47.9]} 14... g5 {[%clk 0:02:08.4]} 15. Ng6 {[%clk 0:02:04.8]} 15... h6
{[%clk 0:01:48.7]} 16. Nxe7+ {[%clk 0:01:50.3]} 16... Qxe7 {[%clk 0:01:42.2]}
17. Be3 {[%clk 0:01:50.8]} 17... Bd7 {[%clk 0:01:39.5]} 18. Nh2 {[%clk
0:01:50.5]} 18... Rac8 {[%clk 0:01:39]} 19. Qd2 {[%clk 0:01:50.6]} 19... a4
{[%clk 0:01:35.6]} 20. Ng4 {[%clk 0:01:50.4]} 20... Kg7 {[%clk 0:01:33.5]} 21.
Nf6 {[%clk 0:01:45.1]} 21... Red8 {[%clk 0:01:08.8]} 22. Bxg5 {[%clk 0:01:44.6]}
22... Nxd4 {[%clk 0:01:03.8]} 23. Bxh6+ {[%clk 0:01:42.4]} 23... Kh8 {[%clk
0:01:03]} 24. Qg5 {[%clk 0:01:35.6]} 24... Nh7 {[%clk 0:00:46.8]} 25. Qg7#
{[%clk 0:01:33.7]} 1-0

[Event "Late-Titled-Tuesday-Blitz-August-29-2023"]
[Site "Chess.com"]
[Date "2023.08.29"]
[Round "7"]
[White "Masterisback04"]
[Black "emiliochess"]
[Result "0-1"]
[WhiteElo "1755"]
[BlackElo "2239"]
[TimeControl "180+1"]
[EndTime "15:14:08 PDT"]
[Termination "emiliochess won on time"]

1. e4 {[%clk 0:03:00.9]} 1... b6 {[%clk 0:02:50.3]} 2. d4 {[%clk 0:02:59.9]}
2... Bb7 {[%clk 0:02:49.1]} 3. Bg5 {[%clk 0:03:00.5]} 3... h6 {[%clk 0:02:45.2]}
4. Bh4 {[%clk 0:02:59.1]} 4... Bxe4 {[%clk 0:02:44.4]} 5. Nc3 {[%clk 0:02:58.3]}
5... Bb7 {[%clk 0:02:43.8]} 6. d5 {[%clk 0:02:53.9]} 6... g5 {[%clk 0:02:43.3]}
7. Bg3 {[%clk 0:02:53]} 7... Bg7 {[%clk 0:02:42.2]} 8. Nf3 {[%clk 0:02:48.4]}
8... d6 {[%clk 0:02:41.9]} 9. Bd3 {[%clk 0:02:40.4]} 9... Nd7 {[%clk 0:02:40.8]}
10. Qe2 {[%clk 0:02:38.3]} 10... Ngf6 {[%clk 0:02:34.6]} 11. Nd4 {[%clk
0:02:26.5]} 11... Nxd5 {[%clk 0:02:26.5]} 12. Nxd5 {[%clk 0:02:11.6]} 12... Bxd5
{[%clk 0:02:27.4]} 13. Nf5 {[%clk 0:02:11.7]} 13... Bf6 {[%clk 0:02:26.2]} 14.
c4 {[%clk 0:01:43.1]} 14... Bc6 {[%clk 0:02:23.9]} 15. h4 {[%clk 0:01:34.2]}
15... e6 {[%clk 0:02:22.1]} 16. hxg5 {[%clk 0:01:27.8]} 16... hxg5 {[%clk
0:02:20]} 17. Rxh8+ {[%clk 0:01:19.2]} 17... Bxh8 {[%clk 0:02:20.9]} 18. O-O-O
{[%clk 0:01:09.2]} 18... Qf6 {[%clk 0:02:15]} 19. f4 {[%clk 0:00:16]} 19...
O-O-O {[%clk 0:02:03.1]} 20. fxg5 {[%clk 0:00:12.7]} 20... Qxg5+ {[%clk
0:02:01.3]} 21. Kb1 {[%clk 0:00:09.7]} 21... exf5 {[%clk 0:01:59.8]} 0-1

[Event "Late-Titled-Tuesday-Blitz-August-29-2023"]
[Site "Chess.com"]
[Date "2023.08.29"]
[Round "7"]
[White "Dzidzik2203"]
[Black "CraiggoryC"]
[Result "1-0"]
[WhiteElo "2352"]
[BlackElo "2222"]
[TimeControl "180+1"]
[EndTime "15:14:13 PDT"]
[Termination "Dzidzik2203 won by checkmate"]

1. d4 {[%clk 0:03:00.9]} 1... e6 {[%clk 0:03:00.3]} 2. c4 {[%clk 0:03:00.5]}
2... Nf6 {[%clk 0:03:00.6]} 3. Nc3 {[%clk 0:03:00.9]} 3... d5 {[%clk 0:03:01.2]}
4. Bg5 {[%clk 0:03:00.6]} 4... dxc4 {[%clk 0:03:00.8]} 5. e4 {[%clk 0:03:00.3]}
5... c5 {[%clk 0:02:56.1]} 6. Nf3 {[%clk 0:02:58.7]} 6... b5 {[%clk 0:02:40.8]}
7. Nxb5 {[%clk 0:02:56.9]} 7... Qa5+ {[%clk 0:02:37.7]} 8. Nc3 {[%clk
0:02:57.5]} 8... Nxe4 {[%clk 0:02:38.2]} 9. Bd2 {[%clk 0:02:48.5]} 9... Nxd2
{[%clk 0:02:36.6]} 10. Qxd2 {[%clk 0:02:48.4]} 10... Nc6 {[%clk 0:02:01.7]} 11.
Bxc4 {[%clk 0:02:47.1]} 11... cxd4 {[%clk 0:01:56.8]} 12. Nxd4 {[%clk
0:02:46.3]} 12... Nxd4 {[%clk 0:01:18]} 13. Qxd4 {[%clk 0:02:47.2]} 13... Bd7
{[%clk 0:01:18.5]} 14. O-O {[%clk 0:02:39.4]} 14... Rd8 {[%clk 0:01:15.5]} 15.
Rad1 {[%clk 0:02:26.5]} 15... Bc6 {[%clk 0:01:02.2]} 16. Qg4 {[%clk 0:02:26.4]}
16... g6 {[%clk 0:00:45.9]} 17. Bxe6 {[%clk 0:02:15.9]} 17... h5 {[%clk
0:00:16]} 18. Qc4 {[%clk 0:02:10]} 18... fxe6 {[%clk 0:00:09.7]} 19. Qxe6+
{[%clk 0:02:08.6]} 19... Be7 {[%clk 0:00:10.3]} 20. Qxg6+ {[%clk 0:02:07.3]}
20... Kf8 {[%clk 0:00:10.5]} 21. Qxc6 {[%clk 0:02:07.8]} 21... Rg8 {[%clk
0:00:09.8]} 22. Qf3+ {[%clk 0:02:05.7]} 22... Ke8 {[%clk 0:00:09.2]} 23. Rxd8+
{[%clk 0:02:05.2]} 23... Kxd8 {[%clk 0:00:08.5]} 24. Rd1+ {[%clk 0:02:04.5]}
24... Ke8 {[%clk 0:00:08.4]} 25. Rd5 {[%clk 0:01:58.1]} 25... Qb4 {[%clk
0:00:05]} 26. Qxh5+ {[%clk 0:01:56.6]} 26... Kf8 {[%clk 0:00:05.4]} 27. Rf5+
{[%clk 0:01:55.9]} 27... Kg7 {[%clk 0:00:05.8]} 28. Rf7# {[%clk 0:01:55.1]} 1-0

[Event "Late-Titled-Tuesday-Blitz-August-29-2023"]
[Site "Chess.com"]
[Date "2023.08.29"]
[Round "7"]
[White "McCarthyStone"]
[Black "maurovargas01"]
[Result "1-0"]
[WhiteElo "2439"]
[BlackElo "1889"]
[TimeControl "180+1"]
[EndTime "15:14:24 PDT"]
[Termination "McCarthyStone won by resignation"]

1. c4 {[%clk 0:02:58.9]} 1... d5 {[%clk 0:03:00.9]} 2. cxd5 {[%clk 0:02:58.6]}
2... Qd6 {[%clk 0:02:55.5]} 3. Nc3 {[%clk 0:02:55.3]} 3... Nf6 {[%clk
0:02:54.8]} 4. e4 {[%clk 0:02:52.2]} 4... e6 {[%clk 0:02:51.6]} 5. d4 {[%clk
0:02:45.8]} 5... exd5 {[%clk 0:02:51.2]} 6. e5 {[%clk 0:02:38.3]} 6... Qe6
{[%clk 0:02:45.3]} 7. Nf3 {[%clk 0:02:19.4]} 7... Nfd7 {[%clk 0:02:42.6]} 8. Bd3
{[%clk 0:02:13.1]} 8... c5 {[%clk 0:02:32.9]} 9. Ng5 {[%clk 0:02:02.3]} 9... Qc6
{[%clk 0:01:55.5]} 10. Bb5 {[%clk 0:01:50.7]} 10... Qb6 {[%clk 0:01:55]} 11.
Nxd5 {[%clk 0:01:46.3]} 11... Qa5+ {[%clk 0:01:53.1]} 12. Bd2 {[%clk 0:01:44.8]}
12... Qd8 {[%clk 0:01:47.9]} 13. Qf3 {[%clk 0:01:34.2]} 13... f6 {[%clk
0:01:39.7]} 14. e6 {[%clk 0:01:31.7]} 14... cxd4 {[%clk 0:01:28.6]} 15. exd7+
{[%clk 0:00:58.7]} 15... Bxd7 {[%clk 0:01:19.4]} 16. Ne6 {[%clk 0:00:56.8]}
16... Qe7 {[%clk 0:01:12]} 17. Nxe7 {[%clk 0:00:52]} 17... Bxe7 {[%clk 0:01:10]}
18. Nc7+ {[%clk 0:00:49.3]} 1-0

[Event "Late-Titled-Tuesday-Blitz-August-29-2023"]
[Site "Chess.com"]
[Date "2023.08.29"]
[Round "7"]
[White "RIPOL"]
[Black "szachmistrz2500"]
[Result "1-0"]
[WhiteElo "2422"]
[BlackElo "2475"]
[TimeControl "180+1"]
[EndTime "15:14:27 PDT"]
[Termination "RIPOL won by resignation"]

1. d4 {[%clk 0:02:59.8]} 1... c5 {[%clk 0:02:56]} 2. d5 {[%clk 0:02:59]} 2... e5
{[%clk 0:02:55.1]} 3. Nc3 {[%clk 0:02:58]} 3... d6 {[%clk 0:02:52.7]} 4. e4
{[%clk 0:02:57.4]} 4... a6 {[%clk 0:02:50.6]} 5. a4 {[%clk 0:02:56.2]} 5... Be7
{[%clk 0:02:50.2]} 6. Nf3 {[%clk 0:02:53.4]} 6... Nf6 {[%clk 0:02:48.8]} 7. Be2
{[%clk 0:02:52.3]} 7... O-O {[%clk 0:02:48.4]} 8. O-O {[%clk 0:02:51.8]} 8...
Ne8 {[%clk 0:02:48.5]} 9. Nd2 {[%clk 0:02:50.6]} 9... f5 {[%clk 0:02:48.2]} 10.
Nc4 {[%clk 0:02:46.9]} 10... fxe4 {[%clk 0:02:32.6]} 11. Nxe4 {[%clk 0:02:40.8]}
11... Nd7 {[%clk 0:02:32.6]} 12. Bg4 {[%clk 0:02:29.5]} 12... Ndf6 {[%clk
0:02:31.7]} 13. Bxc8 {[%clk 0:02:21.3]} 13... Rxc8 {[%clk 0:02:31.5]} 14. Ng5
{[%clk 0:02:10.9]} 14... Qd7 {[%clk 0:02:31.1]} 15. Nb6 {[%clk 0:02:07]} 15...
Qc7 {[%clk 0:02:30.4]} 16. Nxc8 {[%clk 0:02:03.7]} 16... Qxc8 {[%clk 0:02:30.3]}
17. Ne6 {[%clk 0:01:58.6]} 17... Rf7 {[%clk 0:02:30.3]} 18. c4 {[%clk 0:01:58]}
18... Nc7 {[%clk 0:02:29]} 19. Nxc7 {[%clk 0:01:56]} 19... Qxc7 {[%clk
0:02:29.2]} 20. a5 {[%clk 0:01:55.7]} 20... Qd7 {[%clk 0:02:15.3]} 21. h3 {[%clk
0:01:47.9]} 21... Bf8 {[%clk 0:02:12.2]} 22. Ra3 {[%clk 0:01:46.7]} 22... e4
{[%clk 0:02:10.3]} 23. Bf4 {[%clk 0:01:42.3]} 23... Qf5 {[%clk 0:02:09.3]} 24.
Bg3 {[%clk 0:01:36.9]} 24... Nh5 {[%clk 0:02:08]} 25. Qg4 {[%clk 0:01:32]} 25...
Nxg3 {[%clk 0:02:06.5]} 26. Qxg3 {[%clk 0:01:29]} 26... h5 {[%clk 0:01:58.7]}
27. Rb3 {[%clk 0:01:25.8]} 27... g5 {[%clk 0:01:54.1]} 28. Rb6 {[%clk 0:01:25]}
28... h4 {[%clk 0:01:52.9]} 29. Qg4 {[%clk 0:01:21.1]} 29... Qe5 {[%clk
0:01:51.3]} 30. Re1 {[%clk 0:01:15.6]} 30... Qd4 {[%clk 0:01:45.9]} 31. Qxg5+
{[%clk 0:01:04.4]} 31... Bg7 {[%clk 0:01:44.8]} 32. Re3 {[%clk 0:00:57]} 32...
Qxc4 {[%clk 0:01:42.2]} 33. Rxd6 {[%clk 0:00:55.9]} 33... Qc1+ {[%clk
0:01:30.8]} 34. Kh2 {[%clk 0:00:55.5]} 34... Qc2 {[%clk 0:01:31]} 35. Rd8+
{[%clk 0:00:52.3]} 35... Rf8 {[%clk 0:01:31.2]} 36. Rxf8+ {[%clk 0:00:51.1]}
36... Kxf8 {[%clk 0:01:31.6]} 37. Qf5+ {[%clk 0:00:51.2]} 37... Kg8 {[%clk
0:01:30.4]} 38. Rxe4 {[%clk 0:00:49.9]} 38... Qxb2 {[%clk 0:01:28.2]} 39. Re8+
{[%clk 0:00:49]} 1-0

[Event "Late-Titled-Tuesday-Blitz-August-29-2023"]
[Site "Chess.com"]
[Date "2023.08.29"]
[Round "7"]
[White "Semetey"]
[Black "NelsonLinda"]
[Result "1-0"]
[WhiteElo "2596"]
[BlackElo "2459"]
[TimeControl "180+1"]
[EndTime "15:14:29 PDT"]
[Termination "Semetey won by resignation"]

1. e4 {[%clk 0:02:53.1]} 1... c5 {[%clk 0:02:54]} 2. Nf3 {[%clk 0:02:49.6]} 2...
e6 {[%clk 0:02:54]} 3. d4 {[%clk 0:02:50.5]} 3... cxd4 {[%clk 0:02:54.9]} 4.
Nxd4 {[%clk 0:02:50.6]} 4... Nf6 {[%clk 0:02:55.6]} 5. Nc3 {[%clk 0:02:50.2]}
5... d6 {[%clk 0:02:55.7]} 6. Be3 {[%clk 0:02:48.7]} 6... Be7 {[%clk 0:02:55.6]}
7. f3 {[%clk 0:02:48.4]} 7... Nc6 {[%clk 0:02:55.3]} 8. Qd2 {[%clk 0:02:48.7]}
8... O-O {[%clk 0:02:54.6]} 9. O-O-O {[%clk 0:02:48.9]} 9... d5 {[%clk
0:02:53.9]} 10. exd5 {[%clk 0:02:43.3]} 10... Nxd5 {[%clk 0:02:54.8]} 11. Nxd5
{[%clk 0:02:41.6]} 11... Qxd5 {[%clk 0:02:53.3]} 12. Nxc6 {[%clk 0:02:35.3]}
12... Qxc6 {[%clk 0:02:54.2]} 13. Kb1 {[%clk 0:02:31.7]} 13... e5 {[%clk
0:02:41.5]} 14. Bd3 {[%clk 0:02:28]} 14... Be6 {[%clk 0:02:35.5]} 15. Be4 {[%clk
0:02:23.6]} 15... Qa6 {[%clk 0:02:32.3]} 16. a3 {[%clk 0:02:20.8]} 16... Rfd8
{[%clk 0:02:26.8]} 17. Qc3 {[%clk 0:02:20.7]} 17... Rac8 {[%clk 0:01:57.6]} 18.
Qxe5 {[%clk 0:02:19.6]} 18... Rxd1+ {[%clk 0:01:42.7]} 19. Rxd1 {[%clk
0:02:18.4]} 19... Bf6 {[%clk 0:01:41.7]} 20. Qd6 {[%clk 0:02:11.2]} 20... Qc4
{[%clk 0:01:42]} 21. Kc1 {[%clk 0:01:36.6]} 21... g6 {[%clk 0:01:00]} 22. Bd4
{[%clk 0:01:27.1]} 22... Rd8 {[%clk 0:00:49.5]} 23. Bxf6 {[%clk 0:01:26.2]}
23... Rxd6 {[%clk 0:00:17.3]} 24. Rxd6 {[%clk 0:01:27.1]} 24... Qf1+ {[%clk
0:00:17.7]} 1-0

[Event "Late-Titled-Tuesday-Blitz-August-29-2023"]
[Site "Chess.com"]
[Date "2023.08.29"]
[Round "7"]
[White "DishonorOnYourCow"]
[Black "kleinebeer98"]
[Result "1/2-1/2"]
[WhiteElo "2553"]
[BlackElo "2754"]
[TimeControl "180+1"]
[EndTime "15:14:49 PDT"]
[Termination "Game drawn - insufficient material"]

1. d4 {[%clk 0:03:00.9]} 1... Nf6 {[%clk 0:03:00.2]} 2. c4 {[%clk 0:02:59.6]}
2... a6 {[%clk 0:03:00.8]} 3. Nc3 {[%clk 0:02:56]} 3... b5 {[%clk 0:03:01.2]} 4.
cxb5 {[%clk 0:02:53.9]} 4... axb5 {[%clk 0:03:02.1]} 5. Nxb5 {[%clk 0:02:54]}
5... e5 {[%clk 0:03:02.9]} 6. dxe5 {[%clk 0:02:48.7]} 6... Ne4 {[%clk
0:03:03.3]} 7. Nf3 {[%clk 0:02:25.4]} 7... Bb4+ {[%clk 0:02:55.9]} 8. Bd2 {[%clk
0:02:24.2]} 8... Nxd2 {[%clk 0:02:53.7]} 9. Nxd2 {[%clk 0:02:22.6]} 9... Nc6
{[%clk 0:02:52.6]} 10. a3 {[%clk 0:02:16.5]} 10... Bxd2+ {[%clk 0:02:44.3]} 11.
Qxd2 {[%clk 0:02:15.8]} 11... O-O {[%clk 0:02:45.2]} 12. e3 {[%clk 0:02:12]}
12... Nxe5 {[%clk 0:02:44.5]} 13. Be2 {[%clk 0:02:10]} 13... Bb7 {[%clk
0:02:43.2]} 14. O-O {[%clk 0:02:01.5]} 14... Qg5 {[%clk 0:02:43.4]} 15. f3
{[%clk 0:02:00.3]} 15... Nxf3+ {[%clk 0:02:43.8]} 16. Bxf3 {[%clk 0:01:58.4]}
16... Bxf3 {[%clk 0:02:44.5]} 17. Rxf3 {[%clk 0:01:58.4]} 17... Qxb5 {[%clk
0:02:44.6]} 18. Rc1 {[%clk 0:01:54.5]} 18... c6 {[%clk 0:02:40.7]} 19. Qxd7
{[%clk 0:01:50.4]} 19... Qxb2 {[%clk 0:02:40.4]} 20. Rcf1 {[%clk 0:01:40.6]}
20... Qxa3 {[%clk 0:02:34.8]} 21. Rxf7 {[%clk 0:01:31.7]} 21... Qxe3+ {[%clk
0:02:31.4]} 22. Kh1 {[%clk 0:01:31.2]} 22... Qe5 {[%clk 0:02:13.4]} 23. Qxc6
{[%clk 0:01:15.2]} 23... Rfe8 {[%clk 0:02:03.5]} 24. Qc4 {[%clk 0:01:10.2]}
24... Kh8 {[%clk 0:02:03.5]} 25. Qf4 {[%clk 0:00:58.3]} 25... Qc5 {[%clk
0:02:01.4]} 26. Rf5 {[%clk 0:00:56.8]} 26... Qe7 {[%clk 0:01:59]} 27. Rf7 {[%clk
0:00:56.5]} 27... Qa3 {[%clk 0:01:57.9]} 28. Qf3 {[%clk 0:00:55]} 28... Qb4
{[%clk 0:01:50.5]} 29. Rf4 {[%clk 0:00:48.1]} 29... Qd6 {[%clk 0:01:48.7]} 30.
h3 {[%clk 0:00:45.9]} 30... h6 {[%clk 0:01:48.5]} 31. Rf7 {[%clk 0:00:44.3]}
31... Ra3 {[%clk 0:01:46.3]} 32. Rf8+ {[%clk 0:00:37.6]} 32... Rxf8 {[%clk
0:01:46.6]} 33. Qxf8+ {[%clk 0:00:37.7]} 33... Qxf8 {[%clk 0:01:47.5]} 34. Rxf8+
{[%clk 0:00:37.8]} 34... Kh7 {[%clk 0:01:48.4]} 35. Rb8 {[%clk 0:00:35.5]} 35...
g5 {[%clk 0:01:48.5]} 36. Kh2 {[%clk 0:00:33.8]} 36... h5 {[%clk 0:01:48.6]} 37.
Rb7+ {[%clk 0:00:33.7]} 37... Kg6 {[%clk 0:01:48.8]} 38. Rb6+ {[%clk 0:00:33]}
38... Kf7 {[%clk 0:01:49.1]} 39. Rb7+ {[%clk 0:00:33.2]} 39... Kf6 {[%clk
0:01:49.8]} 40. Rb6+ {[%clk 0:00:33.4]} 40... Ke7 {[%clk 0:01:50.4]} 41. Rh6
{[%clk 0:00:31.9]} 41... h4 {[%clk 0:01:48.2]} 42. Rg6 {[%clk 0:00:32]} 42...
Rg3 {[%clk 0:01:47.2]} 43. Kg1 {[%clk 0:00:28.7]} 43... Kf7 {[%clk 0:01:47.6]}
44. Ra6 {[%clk 0:00:28.5]} 44... g4 {[%clk 0:01:48]} 45. hxg4 {[%clk 0:00:25.7]}
45... h3 {[%clk 0:01:47.9]} 46. Kh2 {[%clk 0:00:25.1]} 46... hxg2 {[%clk
0:01:47.5]} 47. Ra1 {[%clk 0:00:24.8]} 47... Rxg4 {[%clk 0:01:46.3]} 48. Rg1
{[%clk 0:00:24.2]} 48... Kf6 {[%clk 0:01:45]} 49. Rxg2 {[%clk 0:00:24.7]} 49...
Rxg2+ {[%clk 0:01:45.4]} 50. Kxg2 {[%clk 0:00:25.6]} 1/2-1/2

[Event "Late-Titled-Tuesday-Blitz-August-29-2023"]
[Site "Chess.com"]
[Date "2023.08.29"]
[Round "7"]
[White "Roedor"]
[Black "Cipy77"]
[Result "0-1"]
[WhiteElo "2429"]
[BlackElo "2550"]
[TimeControl "180+1"]
[EndTime "15:15:04 PDT"]
[Termination "Cipy77 won by resignation"]

1. d4 {[%clk 0:02:57.3]} 1... Nf6 {[%clk 0:02:58.3]} 2. c4 {[%clk 0:02:54]} 2...
c5 {[%clk 0:02:57.1]} 3. d5 {[%clk 0:02:54]} 3... b5 {[%clk 0:02:57.5]} 4. Qc2
{[%clk 0:02:54]} 4... e6 {[%clk 0:02:44.9]} 5. e4 {[%clk 0:02:53.2]} 5... exd5
{[%clk 0:02:45.4]} 6. exd5 {[%clk 0:02:53.5]} 6... d6 {[%clk 0:02:44.9]} 7. a4
{[%clk 0:02:36]} 7... b4 {[%clk 0:02:40.4]} 8. b3 {[%clk 0:02:34.4]} 8... g6
{[%clk 0:02:39]} 9. Bb2 {[%clk 0:02:34.4]} 9... Bg7 {[%clk 0:02:39.3]} 10. Bd3
{[%clk 0:02:33.9]} 10... O-O {[%clk 0:02:39.2]} 11. Ne2 {[%clk 0:02:34.2]} 11...
Nbd7 {[%clk 0:02:39.4]} 12. O-O {[%clk 0:02:33.9]} 12... Re8 {[%clk 0:02:39.8]}
13. Nd2 {[%clk 0:02:31.2]} 13... Ne5 {[%clk 0:02:38.5]} 14. Ng3 {[%clk 0:02:23]}
14... h5 {[%clk 0:02:36.7]} 15. Nge4 {[%clk 0:02:19.5]} 15... Nxd3 {[%clk
0:02:26.6]} 16. Qxd3 {[%clk 0:02:19.3]} 16... Nxe4 {[%clk 0:02:21.3]} 17. Bxg7
{[%clk 0:02:17]} 17... Nxd2 {[%clk 0:02:21.4]} 18. Bb2 {[%clk 0:02:04.5]} 18...
Nxf1 {[%clk 0:02:18.1]} 19. Rxf1 {[%clk 0:02:05.4]} 19... Bf5 {[%clk 0:02:18.1]}
20. Qd2 {[%clk 0:02:04.7]} 20... f6 {[%clk 0:02:09.6]} 21. h3 {[%clk 0:01:53.8]}
21... Kh7 {[%clk 0:02:05.1]} 22. g4 {[%clk 0:01:52.4]} 22... hxg4 {[%clk
0:01:52.3]} 23. hxg4 {[%clk 0:01:53.3]} 23... Bxg4 {[%clk 0:01:52.7]} 24. Kg2
{[%clk 0:01:53.5]} 24... Qd7 {[%clk 0:01:52.6]} 25. Rh1+ {[%clk 0:01:48.5]}
25... Bh5 {[%clk 0:01:53]} 26. Qf4 {[%clk 0:01:43.3]} 26... Qe7 {[%clk
0:01:32.8]} 27. Rh4 {[%clk 0:01:31.9]} 27... Rf8 {[%clk 0:01:20.9]} 28. Rh3
{[%clk 0:01:12.7]} 28... Rae8 {[%clk 0:01:20.2]} 29. Re3 {[%clk 0:01:10.6]}
29... Qd8 {[%clk 0:01:11.6]} 30. Bxf6 {[%clk 0:00:49.7]} 30... Rxe3 {[%clk
0:01:04.8]} 31. Bxd8 {[%clk 0:00:39.8]} 31... Rxf4 {[%clk 0:01:02.2]} 32. fxe3
{[%clk 0:00:40.1]} 32... Re4 {[%clk 0:00:59.8]} 33. Kf2 {[%clk 0:00:39.4]} 33...
Bd1 {[%clk 0:00:54.4]} 34. Bc7 {[%clk 0:00:39]} 34... Bxb3 {[%clk 0:00:54.3]}
35. Bxd6 {[%clk 0:00:39.4]} 35... Bxc4 {[%clk 0:00:54.8]} 36. Bxc5 {[%clk
0:00:39.5]} 36... Bxd5 {[%clk 0:00:53.7]} 0-1

[Event "Late-Titled-Tuesday-Blitz-August-29-2023"]
[Site "Chess.com"]
[Date "2023.08.29"]
[Round "7"]
[White "dropstoneDP"]
[Black "Eternauta2400"]
[Result "1-0"]
[WhiteElo "2971"]
[BlackElo "2838"]
[TimeControl "180+1"]
[EndTime "15:15:10 PDT"]
[Termination "dropstoneDP won by checkmate"]

1. d4 {[%clk 0:02:46]} 1... Nf6 {[%clk 0:03:00]} 2. c4 {[%clk 0:02:45.2]} 2...
e6 {[%clk 0:03:00.5]} 3. Nc3 {[%clk 0:02:44.9]} 3... Bb4 {[%clk 0:03:01]} 4. f3
{[%clk 0:02:44]} 4... d6 {[%clk 0:03:00.2]} 5. e4 {[%clk 0:02:34.8]} 5... c5
{[%clk 0:02:59.9]} 6. a3 {[%clk 0:02:34.1]} 6... Bxc3+ {[%clk 0:02:58.9]} 7.
bxc3 {[%clk 0:02:35]} 7... Nc6 {[%clk 0:02:59.4]} 8. Ne2 {[%clk 0:02:30.2]} 8...
Qc7 {[%clk 0:02:58.7]} 9. Be3 {[%clk 0:02:30.1]} 9... b6 {[%clk 0:02:58.7]} 10.
Ng3 {[%clk 0:02:29.3]} 10... Na5 {[%clk 0:02:55.4]} 11. Bd3 {[%clk 0:02:27.2]}
11... Ba6 {[%clk 0:02:54.8]} 12. O-O {[%clk 0:02:24.9]} 12... O-O {[%clk
0:02:54.4]} 13. Qe2 {[%clk 0:02:00.9]} 13... cxd4 {[%clk 0:02:53.2]} 14. cxd4
{[%clk 0:01:58.9]} 14... Bxc4 {[%clk 0:02:53.2]} 15. Rac1 {[%clk 0:01:54.2]}
15... Bxd3 {[%clk 0:02:49.1]} 16. Qxd3 {[%clk 0:01:55.1]} 16... Qb7 {[%clk
0:02:41.4]} 17. Bg5 {[%clk 0:01:53.6]} 17... Nd7 {[%clk 0:02:36.2]} 18. f4
{[%clk 0:01:51.4]} 18... Rac8 {[%clk 0:02:18.1]} 19. f5 {[%clk 0:01:50.8]} 19...
Rxc1 {[%clk 0:02:15.2]} 20. Bxc1 {[%clk 0:01:49.5]} 20... d5 {[%clk 0:00:31.5]}
21. e5 {[%clk 0:01:45.4]} 21... exf5 {[%clk 0:00:30.8]} 22. Nxf5 {[%clk
0:01:45]} 22... Nc6 {[%clk 0:00:19.3]} 23. Bh6 {[%clk 0:01:37.5]} 23... Re8
{[%clk 0:00:06.5]} 24. Bxg7 {[%clk 0:01:36.3]} 24... Re6 {[%clk 0:00:06.4]} 25.
Bf6 {[%clk 0:01:33.3]} 25... Nxf6 {[%clk 0:00:05.2]} 26. Qg3+ {[%clk 0:01:29.1]}
26... Ng4 {[%clk 0:00:04.8]} 27. Qxg4+ {[%clk 0:01:21.7]} 27... Rg6 {[%clk
0:00:05.4]} 28. Qh4 {[%clk 0:01:22.3]} 28... Qd7 {[%clk 0:00:04.7]} 29. Nh6+
{[%clk 0:01:22.1]} 29... Kh8 {[%clk 0:00:02.8]} 30. Nxf7+ {[%clk 0:01:14.7]}
30... Kg7 {[%clk 0:00:02.7]} 31. Ng5 {[%clk 0:01:14.9]} 31... Nd8 {[%clk
0:00:02.6]} 32. Qxh7# {[%clk 0:01:13.9]} 1-0

[Event "Late-Titled-Tuesday-Blitz-August-29-2023"]
[Site "Chess.com"]
[Date "2023.08.29"]
[Round "7"]
[White "WindWhistler11"]
[Black "DeTimmerman"]
[Result "0-1"]
[WhiteElo "2483"]
[BlackElo "2674"]
[TimeControl "180+1"]
[EndTime "15:15:11 PDT"]
[Termination "DeTimmerman won by resignation"]

1. Nf3 {[%clk 0:02:51.8]} 1... Nf6 {[%clk 0:02:59.3]} 2. c4 {[%clk 0:02:51.2]}
2... e6 {[%clk 0:02:59.9]} 3. g3 {[%clk 0:02:51.4]} 3... d5 {[%clk 0:03:00.6]}
4. Bg2 {[%clk 0:02:51.6]} 4... Be7 {[%clk 0:03:00.9]} 5. O-O {[%clk 0:02:52]}
5... O-O {[%clk 0:03:01.3]} 6. b3 {[%clk 0:02:50]} 6... c5 {[%clk 0:03:01.1]} 7.
Bb2 {[%clk 0:02:50.3]} 7... Nc6 {[%clk 0:03:00.6]} 8. e3 {[%clk 0:02:50.5]} 8...
b6 {[%clk 0:02:57.1]} 9. d3 {[%clk 0:02:50]} 9... Bb7 {[%clk 0:02:56.7]} 10. Qe2
{[%clk 0:02:50]} 10... Qc7 {[%clk 0:02:56.8]} 11. Nbd2 {[%clk 0:02:48.2]} 11...
Rad8 {[%clk 0:02:56.9]} 12. a3 {[%clk 0:02:47.3]} 12... Qb8 {[%clk 0:02:56.5]}
13. Rad1 {[%clk 0:02:46.6]} 13... Rd7 {[%clk 0:02:55.6]} 14. Ne1 {[%clk
0:02:37.4]} 14... Rfd8 {[%clk 0:02:54.6]} 15. f4 {[%clk 0:02:36.8]} 15... Qa8
{[%clk 0:02:50.8]} 16. g4 {[%clk 0:02:33.8]} 16... Na5 {[%clk 0:02:47.4]} 17. g5
{[%clk 0:02:24]} 17... Ne8 {[%clk 0:02:47]} 18. e4 {[%clk 0:02:05.6]} 18... dxe4
{[%clk 0:02:38]} 19. Bxe4 {[%clk 0:01:56.1]} 19... Bxe4 {[%clk 0:02:36.3]} 20.
dxe4 {[%clk 0:01:51]} 20... Nxb3 {[%clk 0:02:33.9]} 21. Nef3 {[%clk 0:01:36.2]}
21... Nxd2 {[%clk 0:02:31.3]} 22. Nxd2 {[%clk 0:01:35.2]} 22... Qc6 {[%clk
0:02:12.2]} 23. h4 {[%clk 0:01:30]} 23... Qa4 {[%clk 0:02:07.5]} 24. f5 {[%clk
0:01:12]} 24... Qc2 {[%clk 0:01:25.9]} 25. Bc1 {[%clk 0:01:05.6]} 25... Nd6
{[%clk 0:01:16.3]} 26. f6 {[%clk 0:00:56.1]} 26... Bf8 {[%clk 0:01:13]} 27. h5
{[%clk 0:00:47]} 27... Nxe4 {[%clk 0:00:58.9]} 28. Qxe4 {[%clk 0:00:43.6]} 28...
Qxe4 {[%clk 0:00:58.2]} 29. Nxe4 {[%clk 0:00:40.7]} 29... Rxd1 {[%clk
0:00:58.8]} 30. fxg7 {[%clk 0:00:29.2]} 30... Rxf1+ {[%clk 0:00:57.6]} 31. Kxf1
{[%clk 0:00:29.2]} 31... Bxg7 {[%clk 0:00:55.2]} 32. Be3 {[%clk 0:00:26.7]}
32... Rd3 {[%clk 0:00:54.1]} 33. Ke2 {[%clk 0:00:25.7]} 33... Rxa3 {[%clk
0:00:53.9]} 0-1